bitfinex-derivatives/quotes_BTCF0:USTF0_20241022
["timestamp","ask_amount","ask_price","bid_price","bid_amount"]
[1729559894026,0.0931,67371.0,67361.0,0.0580083]
[1729559894027,0.0931,67371.0,67363.0,0.014]
[1729559894231,0.167341,67371.0,67370.0,0.04351449]
[1729559896117,0.167341,67371.0,67370.0,0.05751449]
[1729559896329,0.167341,67371.0,67370.0,0.07151449]
[1729559897119,0.167341,67371.0,67370.0,0.028]
[1729559898131,0.18548369,67373.0,67370.0,0.028]
[1729559898132,0.00241111,67373.0,67370.0,0.198]
[1729559898335,0.00241111,67373.0,67372.0,0.07424]
[1729559898515,0.00241111,67373.0,67372.0,0.22934169]
[1729559898921,0.00241111,67373.0,67372.0,0.22933949]
[1729559899129,0.00241111,67373.0,67372.0,0.1467367]
[1729559899325,0.07424,67372.0,67371.0,0.0724967]
[1729559899625,0.07424,67372.0,67370.0,0.1004967]
[1729559899931,0.07424,67372.0,67370.0,0.2704967]
[1729559900129,0.07424,67372.0,67371.0,0.0724967]
[1729559900321,0.25987436,67372.0,67371.0,0.17]
[1729559900721,0.25987436,67372.0,67371.0,0.171]
[1729559901331,0.18563436,67372.0,67371.0,0.245241]
[1729559901932,0.18563436,67372.0,67371.0,0.246241]
[1729559903734,0.18214189,67372.0,67371.0,0.246241]
[1729559903920,0.18214189,67372.0,67371.0,0.25984247]
[1729559905024,0.00586052,67379.0,67378.0,0.074234]
[1729559905225,0.00586052,67379.0,67378.0,0.435034]
[1729559906525,0.00586052,67379.0,67378.0,0.436034]
[1729559907625,0.01886052,67379.0,67378.0,0.437034]
[1729559908744,0.15827494,67401.0,67378.0,0.437034]
[1729559908745,0.07810214,67392.0,67378.0,0.7236]
[1729559908944,0.07810214,67392.0,67389.0,0.17]
[1729559908945,0.00388414,67392.0,67389.0,0.17]
[1729559910038,0.00771494,67401.0,67389.0,0.34]
[1729559910241,0.00771494,67401.0,67400.0,0.17]
[1729559911326,0.00771494,67401.0,67400.0,0.184]
[1729559911935,0.00771494,67401.0,67400.0,0.171]
[1729559913136,0.00771494,67401.0,67400.0,0.172]
[1729559914137,0.0044722,67410.0,67400.0,0.172]
[1729559914334,0.0786712,67410.0,67409.0,0.17]
[1729559915135,0.0044722,67410.0,67409.0,0.5308]
[1729559915342,0.05480763,67410.0,67409.0,0.36002782]
[1729559915640,0.17979758,67410.0,67409.0,0.54402782]
[1729559916144,0.17979758,67410.0,67409.0,0.5448]
[1729559916647,0.11324942,67410.0,67409.0,0.5458]
[1729559917029,0.11324942,67410.0,67409.0,0.5328]
[1729559917847,0.11324942,67410.0,67409.0,0.3628]
[1729559918039,0.11324942,67410.0,67409.0,0.5318]
[1729559918236,0.11324942,67410.0,67409.0,0.5328]
[1729559919846,0.17968962,67410.0,67409.0,0.5328]
[1729559920046,0.17968962,67410.0,67409.0,0.002]
[1729559920447,0.17968962,67410.0,67402.0,0.19944486]
[1729559920637,0.17,67403.0,67402.0,0.19944486]
[1729559920837,0.34521742,67403.0,67402.0,0.19944486]
[1729559921137,0.17521742,67403.0,67402.0,0.19944486]
[1729559921842,0.10877722,67403.0,67402.0,0.19944486]
[1729559922243,0.074201,67408.0,67402.0,0.19944486]
[1729559922445,0.244201,67408.0,67402.0,0.19944486]
[1729559922644,0.001,67403.0,67402.0,0.19944486]
[1729559923349,0.074201,67408.0,67402.0,0.19944486]
[1729559923551,0.076201,67408.0,67402.0,0.19944486]
[1729559923751,0.172,67408.0,67402.0,0.19944486]
[1729559923953,0.074206,67403.0,67402.0,0.19944486]
[1729559924250,0.076206,67403.0,67402.0,0.19944486]
[1729559924651,0.171,67408.0,67402.0,0.19944486]
[1729559924839,0.244205,67404.0,67402.0,0.19944486]
[1729559925242,0.001,67403.0,67402.0,0.19944486]
[1729559926540,0.001,67403.0,67402.0,0.27365186]
[1729559927253,0.001,67404.0,67402.0,0.27365186]
[1729559927254,0.0044722,67410.0,67402.0,0.27365186]
[1729559927443,0.0742,67409.0,67405.0,0.244204]
[1729559927751,0.0044722,67410.0,67405.0,0.244204]
[1729559928951,0.0054722,67410.0,67405.0,0.244204]
[1729559929641,0.0054722,67410.0,67405.0,0.074204]
[1729559931052,0.0796712,67410.0,67405.0,0.074204]
[1729559934445,0.0054722,67410.0,67405.0,0.074204]
[1729559934647,0.0054722,67410.0,67403.0,0.0435046]
[1729559934648,0.074203,67406.0,67403.0,0.0435046]
[1729559934845,0.244205,67405.0,67402.0,0.24294946]
[1729559935353,0.244205,67405.0,67403.0,0.0435046]
[1729559935660,0.074205,67405.0,67403.0,0.0435046]
[1729559935856,0.244205,67405.0,67403.0,0.0435046]
[1729559936259,0.244205,67405.0,67402.0,0.25745099]
[1729559936457,0.244205,67405.0,67402.0,0.05800613]
[1729559936754,0.244205,67405.0,67404.0,0.04355574]
[1729559936959,0.244205,67405.0,67401.0,0.49301413]
[1729559936960,0.074206,67403.0,67402.0,0.05800613]
[1729559937148,0.074207,67402.0,67401.0,0.3608]
[1729559937350,0.12317702,67402.0,67401.0,0.3608]
[1729559939251,0.18009885,67402.0,67401.0,0.3608]
[1729559939650,0.10589185,67402.0,67401.0,0.3608]
[1729559939951,0.074207,67402.0,67401.0,0.3608]
[1729559940249,0.10589185,67402.0,67401.0,0.3608]
[1729559940754,0.04897002,67402.0,67401.0,0.3608]
[1729559942261,0.12317702,67402.0,67401.0,0.3608]
[1729559943461,0.04897002,67402.0,67401.0,0.3608]
[1729559943962,0.04897002,67403.0,67401.0,0.3608]
[1729559944161,0.04897002,67402.0,67401.0,0.3608]
[1729559944757,0.10609084,67402.0,67401.0,0.3608]
[1729559945059,0.18029784,67402.0,67401.0,0.3608]
[1729559945266,0.18029648,67402.0,67401.0,0.30882358]
[1729559945464,0.074207,67402.0,67401.0,0.48108815]
[1729559946258,0.074207,67402.0,67401.0,0.39408029]
[1729559947067,0.17,67404.0,67401.0,0.39408029]
[1729559947263,0.17,67404.0,67402.0,0.08525671]
[1729559947565,0.17,67404.0,67403.0,0.08525671]
[1729559949468,0.074203,67406.0,67403.0,0.08525671]
[1729559949766,0.074203,67406.0,67404.0,0.08525671]
[1729559949964,0.01343335,67409.0,67398.0,0.0874792]
[1729559949965,0.17,67405.0,67398.0,0.0874792]
[1729559950170,0.07421,67400.0,67399.0,0.08562076]
[1729559950356,0.07421,67400.0,67399.0,0.23553202]
[1729559950558,0.07421,67400.0,67399.0,0.08545202]
[1729559950752,0.07421,67400.0,67399.0,0.23553202]
[1729559950956,0.11,67403.0,67399.0,0.23553202]
[1729559951158,0.11,67403.0,67400.0,0.08545202]
[1729559951357,0.1144722,67410.0,67402.0,0.3608]
[1729559951569,0.1144722,67410.0,67406.0,0.07291804]
[1729559951570,0.11,67407.0,67406.0,0.07291804]
[1729559951752,0.11,67407.0,67406.0,0.08545202]
[1729559952360,0.15935952,67407.0,67403.0,0.15008]
[1729559952566,0.04935952,67406.0,67403.0,0.15008]
[1729559952772,0.04935952,67405.0,67404.0,0.184205]
[1729559952974,0.0044722,67410.0,67404.0,0.184205]
[1729559953168,0.0494572,67409.0,67408.0,0.11]
[1729559954255,0.0494572,67409.0,67406.0,0.001]
[1729559954459,0.0494572,67408.0,67406.0,0.001]
[1729559954661,0.04951943,67407.0,67406.0,0.001]
[1729559954967,0.0044722,67410.0,67408.0,0.001]
[1729559955160,0.04962501,67409.0,67408.0,0.0752]
[1729559955866,0.04962501,67409.0,67408.0,0.0742]
[1729559956576,0.0044722,67410.0,67408.0,0.0742]
[1729559956779,0.0044722,67410.0,67406.0,0.001]
[1729559956780,0.17,67409.0,67406.0,0.001]
[1729559957074,0.17,67409.0,67407.0,0.14956]
[1729559957266,0.17,67409.0,67408.0,0.001]
[1729559957459,0.17,67409.0,67408.0,0.002]
[1729559957661,0.0044722,67410.0,67408.0,0.002]
[1729559957860,0.0044722,67410.0,67408.0,0.0762]
[1729559958062,0.0044722,67410.0,67408.0,0.0742]
[1729559958671,0.0044722,67410.0,67408.0,0.0752]
[1729559958972,0.0044722,67410.0,67408.0,0.0762]
[1729559960072,0.0044722,67410.0,67409.0,0.0742]
[1729559960370,0.0044722,67410.0,67409.0,0.15885148]
[1729559961270,0.0044722,67410.0,67409.0,0.30941148]
[1729559961477,0.0044722,67410.0,67409.0,0.31041148]
[1729559962181,0.0044722,67410.0,67409.0,0.16085148]
[1729559962372,0.0044722,67410.0,67409.0,0.31041148]
[1729559963872,0.1744722,67410.0,67409.0,0.08665148]
[1729559964073,0.2486702,67410.0,67409.0,0.002]
[1729559964464,0.2486702,67410.0,67409.0,0.06031924]
[1729559964674,0.2486702,67410.0,67409.0,0.002]
[1729559967467,0.42196047,67410.0,67409.0,0.002]
[1729559972283,0.074212,67398.0,67392.0,0.435018]
[1729559972578,0.074212,67398.0,67395.0,0.14956]
[1729559972579,0.17329027,67397.0,67395.0,0.14956]
[1729559972767,0.17329027,67396.0,67394.0,0.07644135]
[1729559972967,0.17329027,67395.0,67394.0,0.07644135]
[1729559973277,0.17329027,67395.0,67394.0,0.15178535]
[1729559973473,0.17329027,67395.0,67394.0,0.15778535]
[1729559974371,0.17329027,67395.0,67394.0,0.16278535]
[1729559974676,0.17329027,67395.0,67394.0,0.01322535]
[1729559974978,0.17329027,67395.0,67394.0,0.16278535]
[1729559975180,0.17329027,67395.0,67394.0,0.01322535]
[1729559975483,0.244212,67398.0,67394.0,0.19629559]
[1729559975674,0.244212,67398.0,67395.0,0.17292452]
[1729559975869,0.244212,67398.0,67396.0,0.08549166]
[1729559976065,0.244212,67398.0,67397.0,0.08549166]
[1729559976972,0.244212,67398.0,67397.0,0.15837605]
[1729559977275,0.244212,67398.0,67397.0,0.08549166]
[1729559977476,0.074212,67398.0,67397.0,0.08549166]
[1729559978366,0.184212,67398.0,67397.0,0.08549166]
[1729559978568,0.184212,67398.0,67397.0,0.44629166]
[1729559978879,0.193212,67398.0,67397.0,0.44629166]
[1729559979079,0.193212,67398.0,67397.0,0.44629641]
[1729559979467,0.193212,67398.0,67397.0,0.51914452]
[1729559980077,0.083212,67398.0,67397.0,0.62914452]
[1729559980278,0.009,67398.0,67397.0,0.63050941]
[1729559981875,0.074206,67404.0,67399.0,0.07421]
[1729559982073,0.3608,67408.0,67403.0,0.11]
[1729559982380,0.3608,67408.0,67407.0,0.11]
[1729559982577,0.3608,67408.0,67407.0,0.22]
[1729559982883,0.3608,67408.0,67407.0,0.11]
[1729559983471,0.1897,67411.0,67407.0,0.11]
[1729559983677,0.1897,67411.0,67409.0,0.05823363]
[1729559984077,0.1897,67411.0,67407.0,0.111]
[1729559984685,0.005,67408.0,67407.0,0.112]
[1729559985176,0.0836712,67410.0,67407.0,0.111]
[1729559985376,0.0896712,67410.0,67407.0,0.112]
[1729559985877,0.005,67408.0,67407.0,0.186201]
[1729559986187,0.011,67408.0,67407.0,0.186201]
[1729559986377,0.011,67408.0,67407.0,0.27135158]
[1729559986881,0.005,67408.0,67407.0,0.27135158]
[1729559987584,0.0846712,67410.0,67407.0,0.27135158]
[1729559987887,0.0846712,67410.0,67407.0,0.25898614]
[1729559987888,0.0896712,67410.0,67407.0,0.25898614]
[1729559988086,0.0896712,67410.0,67408.0,0.15781409]
[1729559988282,0.0896712,67410.0,67408.0,0.07278514]
[1729559988283,0.0846712,67410.0,67408.0,0.07278514]
[1729559988587,0.0786712,67410.0,67408.0,0.07278514]
[1729559988789,0.0836712,67410.0,67408.0,0.07278514]
[1729559989284,0.0154722,67410.0,67409.0,0.0742]
[1729559990591,0.06438293,67410.0,67409.0,0.0742]
[1729559990787,0.1290475,67410.0,67409.0,0.0742]
[1729559990987,0.26003315,67410.0,67409.0,0.0742]
[1729559991287,0.25503315,67410.0,67409.0,0.0742]
[1729559991489,0.26003315,67410.0,67409.0,0.0762]
[1729559993896,0.25919849,67410.0,67409.0,0.0762]
[1729559994482,0.18500049,67410.0,67409.0,0.0762]
[1729559995197,0.17251901,67412.0,67411.0,0.074197]
[1729559995388,0.02580157,67412.0,67411.0,0.184197]
[1729559996294,0.03180157,67412.0,67411.0,0.185197]
[1729559996496,0.03680157,67412.0,67411.0,0.186197]
[1729559996684,0.03680157,67412.0,67411.0,0.631237]
[1729559997285,0.07663484,67422.0,67411.0,0.66704]
[1729559997491,0.07663484,67422.0,67421.0,0.184186]
[1729559997692,0.07663484,67422.0,67421.0,0.333146]
[1729559998397,0.00100045,67425.0,67421.0,0.333146]
[1729559998592,0.00100045,67425.0,67421.0,0.334146]
[1729559999395,0.00100045,67425.0,67421.0,0.335146]
[1729559999799,0.00100045,67425.0,67421.0,0.340146]
[1729560000000,0.00703557,67423.0,67422.0,0.074185]
[1729560000393,0.00703557,67423.0,67422.0,0.244185]
[1729560000702,0.3633438,67429.0,67422.0,0.244185]
[1729560000703,0.0025438,67429.0,67428.0,0.074179]
[1729560000904,0.0025438,67429.0,67428.0,0.434979]
[1729560001093,0.0025438,67429.0,67428.0,0.879899]
[1729560001288,0.0025438,67429.0,67428.0,0.434979]
[1729560001493,0.0025438,67429.0,67428.0,0.3608]
[1729560001712,0.0025438,67429.0,67428.0,0.50976]
[1729560001893,0.0025438,67429.0,67428.0,0.3608]
[1729560002498,0.0025438,67429.0,67419.0,0.0018]
[1729560002798,0.17,67420.0,67413.0,0.5308]
[1729560003397,0.074196,67413.0,67412.0,0.17]
[1729560003798,0.3608,67418.0,67412.0,0.17]
[1729560004002,0.3608,67418.0,67417.0,0.17]
[1729560004398,0.165079,67428.0,67418.0,0.074189]
[1729560004601,0.165079,67428.0,67422.0,0.17]
[1729560004791,0.0909,67428.0,67422.0,0.244185]
[1729560004997,0.074175,67431.0,67422.0,0.244185]
[1729560005201,0.074175,67431.0,67427.0,0.17]
[1729560005403,0.3608,67432.0,67427.0,0.17]
[1729560006108,0.3608,67432.0,67427.0,0.244179]
[1729560006401,0.0943,67435.0,67428.0,0.3608]
[1729560007203,0.17,67433.0,67428.0,0.50972]
[1729560007399,0.074177,67430.0,67428.0,0.14892]
[1729560007600,0.074173,67433.0,67428.0,0.14892]
[1729560008004,0.074173,67433.0,67428.0,0.16249908]
[1729560008609,0.0943,67435.0,67428.0,0.16249908]
[1729560008809,0.074173,67433.0,67428.0,0.14892]
[1729560009110,0.4230935,67429.0,67428.0,0.17]
[1729560009609,0.4230935,67429.0,67428.0,0.244179]
[1729560009903,0.4230935,67429.0,67428.0,0.00666043]
[1729560010109,0.4230935,67429.0,67427.0,0.14892]
[1729560010409,0.0025438,67429.0,67428.0,0.244179]
[1729560010710,0.41222163,67429.0,67428.0,0.244179]
[1729560010896,0.41222163,67429.0,67428.0,0.074179]
[1729560011099,0.41222163,67429.0,67428.0,0.31892]
[1729560011302,0.41222163,67429.0,67428.0,0.393099]
[1729560011806,0.25471802,67429.0,67428.0,0.393099]
[1729560012008,0.39643551,67429.0,67428.0,0.393099]
[1729560012209,0.51761047,67429.0,67428.0,0.393099]
[1729560013012,0.0943,67435.0,67433.0,0.074173]
[1729560013214,0.0943,67435.0,67433.0,0.13209532]
[1729560013910,0.38541926,67437.0,67433.0,0.074173]
[1729560014215,0.38541926,67437.0,67433.0,0.23862278]
[1729560014414,0.38541926,67437.0,67433.0,0.23858883]
[1729560014910,0.01051178,67445.0,67436.0,0.07417]
[1729560015115,0.01051178,67445.0,67444.0,0.67729071]
[1729560015418,0.00513501,67447.0,67446.0,0.074159]
[1729560015716,0.00513501,67447.0,67446.0,0.31644359]
[1729560015911,0.0939,67465.0,67456.0,0.074148]
[1729560016114,0.0939,67465.0,67456.0,0.244148]
[1729560016320,0.43695879,67462.0,67456.0,0.3184]
[1729560016724,0.43695879,67462.0,67456.0,0.33165783]
[1729560016725,0.36281779,67462.0,67456.0,0.33165783]
[1729560016907,0.36281779,67462.0,67456.0,0.40580583]
[1729560017613,0.36281779,67462.0,67456.0,0.40680583]
[1729560017806,0.36281779,67462.0,67456.0,0.46462144]
[1729560018413,0.36281779,67462.0,67456.0,0.40680583]
[1729560019120,0.36281779,67462.0,67456.0,0.40780583]
[1729560020215,0.36281779,67462.0,67456.0,0.46562144]
[1729560020912,0.36281779,67462.0,67456.0,0.40780583]
[1729560024213,0.36281779,67462.0,67456.0,0.40776583]
[1729560024917,0.36281779,67462.0,67456.0,0.25940583]
[1729560025120,0.36281779,67462.0,67456.0,0.40776583]
[1729560026108,0.074144,67460.0,67456.0,0.33361783]
[1729560026310,0.53361779,67462.0,67456.0,0.40776583]
[1729560026514,0.43775979,67462.0,67456.0,0.40776583]
[1729560026710,0.43695979,67462.0,67456.0,0.40776583]
[1729560026920,0.074143,67461.0,67456.0,0.40776583]
[1729560027230,0.074143,67461.0,67456.0,0.25940583]
[1729560027519,0.074143,67461.0,67456.0,0.40776583]
[1729560027925,0.36281779,67462.0,67456.0,0.40776583]
[1729560028810,0.00201779,67462.0,67456.0,0.40776583]
[1729560029015,0.00415771,67466.0,67456.0,0.40776583]
[1729560029016,0.00415771,67466.0,67465.0,0.074138]
[1729560029222,0.00415771,67466.0,67465.0,0.414138]
[1729560029522,0.00415771,67466.0,67465.0,0.244138]
[1729560030320,0.00415771,67466.0,67465.0,0.245138]
[1729560030624,0.00415771,67466.0,67465.0,0.246138]
[1729560030825,0.00415771,67466.0,67465.0,0.860818]
[1729560031018,0.00415771,67466.0,67465.0,0.8740833]
[1729560031221,0.00415771,67466.0,67465.0,0.2594033]
[1729560032218,0.00415771,67466.0,67465.0,0.4077233]
[1729560032926,0.00415771,67466.0,67465.0,0.2594033]
[1729560033314,0.00415771,67466.0,67465.0,0.4077233]
[1729560033818,0.00415771,67466.0,67465.0,0.2594033]
[1729560034016,0.00415771,67466.0,67465.0,0.4077233]
[1729560035118,0.00415771,67466.0,67465.0,0.2594033]
[1729560035431,0.00415771,67466.0,67465.0,0.4077233]
[1729560035931,0.00997935,67468.0,67465.0,0.4077233]
[1729560036120,0.00997935,67468.0,67465.0,0.2594033]
[1729560036315,0.09,67467.0,67465.0,0.13263576]
[1729560036515,0.09,67467.0,67466.0,0.17]
[1729560038022,0.09,67467.0,67466.0,0.171]
[1729560038522,0.09,67467.0,67466.0,0.21423246]
[1729560038728,0.09,67467.0,67466.0,0.172]
[1729560039327,0.09,67467.0,67466.0,0.21523246]
[1729560039526,0.00997935,67468.0,67467.0,0.074136]
[1729560040427,0.00997935,67468.0,67467.0,0.13195161]
[1729560040615,0.00997935,67468.0,67467.0,0.074136]
[1729560041020,0.00997935,67468.0,67467.0,0.075136]
[1729560041731,0.00997935,67468.0,67467.0,0.224456]
[1729560042827,0.00997935,67468.0,67467.0,0.076136]
[1729560043027,0.00997935,67468.0,67467.0,0.224456]
[1729560044626,0.05112657,67468.0,67467.0,0.223896]
[1729560048138,0.00997935,67468.0,67467.0,0.223896]
[1729560048631,0.09892731,67468.0,67467.0,0.223896]
[1729560049428,0.09892731,67468.0,67467.0,0.076136]
[1729560049633,0.09892731,67468.0,67467.0,0.223896]
[1729560049932,0.0989149,67468.0,67467.0,0.14976]
[1729560050223,0.0989149,67468.0,67467.0,0.25976]
[1729560050627,0.1730499,67468.0,67467.0,0.25976]
[1729560050827,0.1730499,67468.0,67467.0,0.112]
[1729560051025,0.08411435,67468.0,67467.0,0.25976]
[1729560051224,0.55491435,67468.0,67467.0,0.002]
[1729560051439,0.44491435,67468.0,67467.0,0.0599649]
[1729560051742,0.44491435,67468.0,67467.0,0.002]
[1729560051929,0.00997935,67468.0,67467.0,0.05996384]
[1729560052135,0.00997935,67468.0,67467.0,0.002]
[1729560052337,0.00997935,67468.0,67467.0,0.22996384]
[1729560054138,0.00997935,67468.0,67467.0,0.172]
[1729560054731,0.00997935,67468.0,67467.0,0.002]
[1729560058145,0.0997978,67468.0,67467.0,0.002]
[1729560061250,0.0997978,67468.0,67451.0,0.00222312]
[1729560061251,0.44468,67467.0,67451.0,0.00222312]
[1729560061452,0.244152,67452.0,67451.0,0.00222312]
[1729560061653,0.33458327,67452.0,67451.0,0.00222312]
[1729560061844,0.51948327,67452.0,67451.0,0.00222312]
[1729560063760,0.52248327,67452.0,67451.0,0.00222312]
[1729560064250,0.52648327,67452.0,67451.0,0.00322312]
[1729560064639,0.18573127,67452.0,67451.0,0.00322312]
[1729560065045,0.09743127,67452.0,67451.0,0.00322312]
[1729560065246,0.26743127,67452.0,67451.0,0.00322312]
[1729560065441,0.36333127,67452.0,67451.0,0.00322312]
[1729560065638,0.31446247,67452.0,67451.0,0.00322312]
[1729560065842,0.36183892,67452.0,67451.0,0.00322312]
[1729560066043,0.2729,67452.0,67451.0,0.00322312]
[1729560066542,0.791812,67452.0,67451.0,0.00322312]
[1729560066745,0.074161,67445.0,67442.0,0.07226951]
[1729560066948,0.074161,67445.0,67442.0,0.01334166]
[1729560066949,0.244162,67443.0,67442.0,0.01334166]
[1729560067149,0.244162,67443.0,67439.0,0.07226951]
[1729560067448,0.17,67440.0,67439.0,0.07226951]
[1729560067655,0.17,67440.0,67439.0,0.09136074]
[1729560067852,0.17,67440.0,67439.0,0.16367427]
[1729560068251,0.17,67440.0,67438.0,0.29424053]
[1729560068956,0.17,67440.0,67438.0,0.30737763]
[1729560069149,0.17,67440.0,67438.0,0.0873041]
[1729560069657,0.17,67440.0,67438.0,0.0893041]
[1729560070044,0.244162,67443.0,67438.0,0.0893041]
[1729560070245,0.244162,67443.0,67442.0,0.05779248]
[1729560070452,0.244162,67443.0,67441.0,0.05779248]
[1729560071153,0.244162,67443.0,67442.0,0.05779248]
[1729560071355,0.17,67443.0,67441.0,0.05779248]
[1729560071550,0.074164,67441.0,67440.0,0.05779248]
[1729560071748,0.074164,67441.0,67439.0,0.05779248]
[1729560072059,0.244165,67440.0,67439.0,0.05779248]
[1729560072254,0.074167,67439.0,67438.0,0.05979248]
[1729560072662,0.17,67440.0,67438.0,0.002]
[1729560072847,0.074167,67439.0,67438.0,0.002]
[1729560073050,0.434967,67439.0,67438.0,0.002]
[1729560073254,1.047107,67439.0,67438.0,0.002]
[1729560073454,1.128007,67439.0,67438.0,0.002]
[1729560073655,1.128007,67439.0,67434.0,0.04332629]
[1729560073656,0.074171,67435.0,67434.0,0.04332629]
[1729560073851,0.074171,67435.0,67430.0,0.06001622]
[1729560073852,0.074174,67432.0,67431.0,0.04332629]
[1729560074054,0.074174,67432.0,67430.0,0.00222374]
[1729560074055,0.074175,67431.0,67430.0,0.04553283]
[1729560074271,0.519055,67431.0,67430.0,0.00222374]
[1729560074963,0.074176,67430.0,67426.0,0.04330909]
[1729560075264,0.074184,67423.0,67422.0,0.04330909]
[1729560075569,0.244184,67423.0,67422.0,0.04330909]
[1729560076060,0.244184,67423.0,67420.0,0.01359245]
[1729560076255,0.244184,67423.0,67422.0,0.0432676]
[1729560076858,0.244184,67423.0,67422.0,0.001]
[1729560077161,0.244184,67423.0,67422.0,0.04426812]
[1729560077558,0.004,67423.0,67422.0,0.11845312]
[1729560077766,0.006,67423.0,67422.0,0.074185]
[1729560078067,0.002,67423.0,67422.0,0.074185]
[1729560078262,0.006,67423.0,67422.0,0.074185]
[1729560079258,0.004,67423.0,67422.0,0.074185]
[1729560080665,0.17,67425.0,67422.0,0.074185]
[1729560080866,0.001,67423.0,67422.0,0.074185]
[1729560082173,0.001,67423.0,67422.0,0.245185]
[1729560082368,0.001,67423.0,67422.0,0.075185]
[1729560082862,0.001,67423.0,67422.0,0.074185]
[1729560083059,0.001,67423.0,67422.0,0.075185]
[1729560083269,0.171,67425.0,67423.0,0.074184]
[1729560083769,0.3608,67427.0,67424.0,0.244983]
[1729560083970,0.3608,67427.0,67426.0,0.04323011]
[1729560084282,0.3608,67427.0,67424.0,0.244983]
[1729560084473,0.3608,67427.0,67424.0,0.1708]
[1729560084659,0.172,67425.0,67424.0,0.1708]
[1729560084862,0.246182,67425.0,67423.0,0.05779248]
[1729560085067,0.074183,67424.0,67422.0,0.05879248]
[1729560085273,0.074183,67424.0,67421.0,0.3608]
[1729560085274,0.074183,67424.0,67421.0,0.41859248]
[1729560086263,0.074183,67424.0,67422.0,0.001]
[1729560086461,0.074183,67424.0,67422.0,0.05879248]
[1729560087469,0.075183,67424.0,67423.0,0.05779248]
[1729560088467,0.075183,67424.0,67421.0,0.37560595]
[1729560088861,0.075183,67424.0,67421.0,0.37360595]
[1729560089259,0.075183,67424.0,67421.0,0.54360595]
[1729560089465,0.075183,67424.0,67421.0,0.61591948]
[1729560089676,0.074183,67424.0,67421.0,0.61791948]
[1729560090063,0.02222411,67424.0,67422.0,0.16376879]
[1729560090279,0.3608,67427.0,67422.0,0.07231353]
[1729560090578,0.43498,67427.0,67426.0,0.05780726]
[1729560091167,0.43498,67427.0,67424.0,0.07231353]
[1729560091566,0.074181,67426.0,67424.0,0.07231353]
[1729560091767,0.3608,67427.0,67424.0,0.07231353]
[1729560091969,0.3608,67427.0,67425.0,0.244181]
[1729560092171,0.3638,67427.0,67426.0,0.074181]
[1729560092974,0.3618,67427.0,67426.0,0.074181]
[1729560093183,0.3658,67427.0,67426.0,0.23752103]
[1729560093382,0.00177688,67427.0,67426.0,0.6101275]
[1729560093685,0.074165,67441.0,67435.0,0.07417]
[1729560093983,0.074165,67441.0,67437.0,0.05779374]
[1729560094877,0.074165,67441.0,67438.0,0.05779374]
[1729560095075,0.074167,67439.0,67438.0,0.05779374]
[1729560095777,0.074168,67438.0,67437.0,0.001]
[1729560095982,0.074171,67435.0,67434.0,0.07224217]
[1729560096280,0.074171,67435.0,67434.0,0.16265985]
[1729560097283,0.074171,67435.0,67434.0,0.09032319]
[1729560097585,0.081171,67435.0,67434.0,0.09132319]
[1729560098085,0.081171,67435.0,67434.0,0.16369739]
[1729560098282,0.081171,67435.0,67434.0,0.1637113]
[1729560098473,0.081171,67435.0,67434.0,0.002]
[1729560099166,0.081171,67435.0,67434.0,0.001]
[1729560099372,0.082171,67435.0,67434.0,0.001]
[1729560099779,0.074172,67434.0,67433.0,0.07238811]
[1729560099971,0.434972,67434.0,67433.0,0.07238811]
[1729560100173,0.434972,67434.0,67433.0,0.16293517]
[1729560100378,0.434972,67434.0,67431.0,0.07248362]
[1729560100379,0.074174,67432.0,67431.0,0.07248362]
[1729560100584,0.074174,67432.0,67431.0,0.16319849]
[1729560100585,0.244174,67432.0,67431.0,0.16319849]
[1729560100783,0.244174,67432.0,67430.0,0.07249298]
[1729560101080,0.17,67431.0,67426.0,0.01257399]
[1729560101281,0.3668,67434.0,67430.0,0.07252155]
[1729560101490,0.074174,67432.0,67431.0,0.07251919]
[1729560101879,0.082174,67432.0,67431.0,0.07351919]
[1729560102075,0.082174,67432.0,67431.0,0.09179394]
[1729560102584,0.082174,67432.0,67427.0,0.07257251]
[1729560102585,0.074179,67428.0,67427.0,0.07257251]
[1729560102781,0.5308,67428.0,67420.0,0.08669061]
[1729560103084,0.604985,67422.0,67421.0,0.09108289]
[1729560104876,0.3608,67422.0,67421.0,0.09108289]
[1729560105479,0.17,67425.0,67421.0,0.09308289]
[1729560105782,0.17,67425.0,67422.0,0.09108289]
[1729560105987,0.17,67425.0,67423.0,0.09108289]
[1729560106181,0.17,67425.0,67424.0,0.09108289]
[1729560106384,0.244182,67425.0,67424.0,0.09108289]
[1729560107288,0.247182,67425.0,67424.0,0.09108289]
[1729560107886,0.248182,67425.0,67424.0,0.09108289]
[1729560110289,0.248182,67425.0,67421.0,0.08669061]
[1729560110492,0.248182,67425.0,67422.0,0.09053383]
[1729560110786,0.248182,67425.0,67423.0,0.09053383]
[1729560110991,0.248182,67425.0,67424.0,0.09053383]
[1729560111383,0.244182,67425.0,67424.0,0.09053383]
[1729560112090,0.246182,67425.0,67424.0,0.09053383]
[1729560113189,0.247182,67425.0,67424.0,0.09053383]
[1729560113389,0.245182,67425.0,67424.0,0.09053383]
[1729560113592,0.248182,67425.0,67424.0,0.09053383]
[1729560116397,0.004,67425.0,67424.0,0.16471683]
[1729560116692,0.004,67425.0,67424.0,0.24711683]
[1729560118094,0.004,67425.0,67424.0,0.50125585]
[1729560118991,0.003,67425.0,67424.0,0.50125585]
[1729560119192,0.004,67425.0,67424.0,0.50625585]
[1729560120093,0.3608,67436.0,67424.0,0.76860615]
[1729560120293,0.3608,67436.0,67433.0,0.17]
[1729560120495,0.3608,67436.0,67435.0,0.074171]
[1729560120887,0.3608,67436.0,67435.0,0.16358007]
[1729560121293,0.3608,67436.0,67435.0,0.08940907]
[1729560121803,0.3688,67436.0,67435.0,0.09040907]
[1729560122089,0.3698,67436.0,67435.0,0.10313898]
[1729560122685,0.009,67436.0,67435.0,0.10313898]
[1729560122994,0.013,67436.0,67435.0,0.01472991]
[1729560123201,0.013,67436.0,67435.0,0.08890091]
[1729560123584,0.013,67436.0,67435.0,0.10413356]